{"text_format":"1","workbook":"xlsx","n_sheets":49,"sheets":["modProv","Инструкция","Лог обновления","Титульный","Территории","Дифференциация","Форма 1.0.1","Форма 1.7","Сведения об изменении","Форма 1.0.2","Комментарии","Проверка","modReestr","AllSheetsInThisWorkbook","TEHSHEET","modCheckCyan","modInfo","et_union_hor","et_union_vert","modList00","modList01","modList02","modList03","modList04","modList07","modList09","modHTTP","modfrmRegion","MR_LIST","REESTR_VT","REESTR_VED","modfrmReestrObj","DataOrg","modfrmReestr","modUpdTemplMain","REESTR_ORG","modClassifierValidate","modHyp","modfrmDateChoose","modComm","modThisWorkbook","REESTR_MO","REESTR_MO_FILTER","modfrmReestrMR","modServiceModule","modfrmCheckUpdates","REESTR_DS","REESTR_CHS","REESTR_LINK"],"not_rendered":{"charts":0,"images":22,"macros":1,"external_links":0,"defined_names":173,"comments":3,"pivot_tables":0},"unopened":[],"bounds":{"document_bytes":16777216,"sheet_cells":100000,"rows_first":2000,"rows_last":500,"rows_between":2000,"halvings":0,"cell_chars":16384,"cell_head_chars":4096},"cells_cut":0,"cells_raw":0,"read":"whole","date_system":"1900"}

{"sheet":"modProv","index":0,"n_rows":0,"n_cols":0,"rows_kept":0,"cut":false,"hidden":true,"merged":[]}

{"sheet":"Инструкция","index":1,"n_rows":83,"n_cols":27,"rows_kept":83,"cut":false,"hidden":false,"merged":[[82,5,82,23],[60,7,60,23],[78,4,78,23],[72,5,72,23],[73,5,73,23],[74,4,74,23],[75,4,75,23],[76,4,76,23],[77,4,77,23],[69,4,69,19],[39,4,39,23],[40,4,44,23],[45,4,56,23],[80,5,80,18],[58,4,58,6],[58,7,58,23],[59,4,59,6],[71,5,71,23],[57,4,57,20],[70,4,70,19],[34,4,38,23],[22,15,22,22],[21,5,21,12],[1,1,1,6],[2,1,2,2],[4,1,4,24],[6,4,18,23],[20,5,20,12],[20,15,20,23],[21,15,21,23]]}
[null,null,null,null,null,null,null,null,null,null,null,null,null,null,null,null,null,null,null,null,null,null,null,null,null,null," (требуется обновление)"]
[null,{"$f":"\"Код шаблона: \" & GetCode()","v":"Код шаблона: FAS.JKH.OPEN.INFO.QUARTER.GVS"}]
[null,{"$f":"\"Версия \" & Getversion()","v":"Версия 1.0.1"}]
[]
[null,{"$f":"Титульный!E5","v":"Информация о наличии (отсутствии) технической возможности подключения к централизованной системе горячего водоснабжения, а также о регистрации и ходе реализации заявок о подключении к централизованной системе горячего водоснабжения"}]
[]
[null,null,null,null,"• На рабочем месте должен быть установлен MS Office 2007 SP3, 2010, 2013, 2016 с полной версией MS Excel\n\n• Макросы во время работы должны быть включены (!)\n\n• Для корректной работы отчёта требуется выбрать низкий уровень безопасности\n(В меню MS Excel 2007/2010/2013/2016: Параметры Excel | Центр управления безопасностью | Параметры центра управления безопасностью | Параметры макросов | Включить все макросы | ОК)\n\n• Если Вы работаете в табличном процессоре MS Excel 2007 и выше, то можете использовать для работы формат XLSB (Двоичная книга Excel). При работе в формате XLSB заметно быстрее происходит сохранение файла, а также уменьшается размер по сравнению с форматами XLS и XLSM\n\n• Не рекомендуется снимать защиту с листов и каким-либо образом модифицировать защищаемые формулы и расчётные поля, в противном случае, отчёт будет отклонён системой\n\n• При сохранении не следует выбирать формат XLSX (Книга Excel), так как в указанном формате макросы, необходимые для работы отчёта, безвозвратно удаляются"]
[]
[]
[]
[]
[]
[]
[]
[]
[]
[]
[]
[]
[]
[null,null,null,null,"A"," - не обязательные для заполнения",null,null,null,null,null,null,null,null,"A"," - с формулами и константами"]
[null,null,null,null,"A"," - обязательные для заполнения",null,null,null,null,null,null,null,null,"A"," - с выбором значений до двойному клику"]
[]
[]
[]
[]
[]
[]
[]
[]
[]
[]
[]
[]
[null,null,null,null,"Если в предложенном Вам списке необходимая организация, МР/МО отсутствуют, обновите реестры с помощью кнопок\n\nВ результате синхронизации с базой данных список организаций (МР/МО) будет заменён актуальным (механизм синхронизации требует подключения к сети Интернет и основан на использовании протокола HTTPS (TCP порт 443))\n\nЕсли после обновления Вам не удалось найти необходимую организацию в списке, обратитесь к ответственному за поддержание реестра Вашего региона."]
[]
[]
[]
[]
[]
[]
[]
[]
[]
[]
[null,null,null,null,"• При сохранении шаблона осуществляется проверка корректности данных, в том числе на наличие значений в ячейках, обязательных для заполнения\n\n• Если какая-то ячейка не удовлетворяет условию проверки, на лист «Проверка» добавляется гиперссылка на данную ячейку и указывается причина ошибки\n\n• В колонке «Статус» для каждого сообщения возможны 2 значения: ошибка и предупреждение\n\n• При наличии сообщений со статусом «Ошибка» шаблон будет отклонён системой и не будет загружен в хранилище данных, сообщения со статусом «Предупреждение» носят информационный характер, и такой шаблон будет принят системой"]
[]
[]
[]
[]
[]
[]
[]
[]
[]
[]
[]
[null,null,null,null,"Обратиться за помощью в службу технической поддержки"]
[]
[]
[]
[]
[]
[]
[]
[]
[]
[]
[]
[null,null,null,null,"Инструкция по загрузке сопроводительных материалов"]
[null,null,null,null,"Инструкция по работе с отчетной формой"]
[]
[]
[]
[]
[]
[]
[]
[null,null,null,null,"При наличии подключения к Интернет, можно автоматически проверять наличие доступных обновлений. Выберите способ оповещения о наличии обновлений для отчёта:"]
[]
[null,null,null,null,null,"проверять доступные обновления (рекомендуется)",null,null,null,null,null,null,null,null,null,null,null,null,null,null,null,null,null,null,null,null,"y"]
[]
[null,null,null,null,null,"никогда не проверять наличие обновлений (не рекомендуется)"]

{"sheet":"Лог обновления","index":2,"n_rows":16,"n_cols":3,"rows_kept":16,"cut":false,"hidden":true,"merged":[]}
["Дата/Время","Сообщение","Статус"]
["2022-07-01T10:22:56","Проверка доступных обновлений...","Информация"]
["2022-07-01T10:22:57","Нет доступных обновлений для отчёта с кодом FAS.JKH.OPEN.INFO.QUARTER.GVS!","Информация"]
["2022-07-01T10:23:09","Проверка доступных обновлений...","Информация"]
["2022-07-01T10:23:10","Нет доступных обновлений для отчёта с кодом FAS.JKH.OPEN.INFO.QUARTER.GVS!","Информация"]
["2022-07-01T10:23:32","Проверка доступных обновлений...","Информация"]
["2022-07-01T10:23:33","Нет доступных обновлений для отчёта с кодом FAS.JKH.OPEN.INFO.QUARTER.GVS!","Информация"]
["2022-07-01T10:25:20","Проверка доступных обновлений...","Информация"]
["2022-07-01T10:25:21","Нет доступных обновлений для отчёта с кодом FAS.JKH.OPEN.INFO.QUARTER.GVS!","Информация"]
["2022-07-01T11:12:38","Проверка доступных обновлений...","Информация"]
["2022-07-01T14:19:18","Проверка доступных обновлений...","Информация"]
["2022-07-01T14:19:19","Нет доступных обновлений для отчёта с кодом FAS.JKH.OPEN.INFO.QUARTER.GVS!","Информация"]
["2022-07-01T14:21:21","Проверка доступных обновлений...","Информация"]
["2022-07-01T14:21:22","Нет доступных обновлений для отчёта с кодом FAS.JKH.OPEN.INFO.QUARTER.GVS!","Информация"]
["2022-07-01T14:21:36","Проверка доступных обновлений...","Информация"]
["2022-07-01T14:21:37","Нет доступных обновлений для отчёта с кодом FAS.JKH.OPEN.INFO.QUARTER.GVS!","Информация"]

{"sheet":"Титульный","index":3,"n_rows":39,"n_cols":6,"rows_kept":39,"cut":false,"hidden":false,"merged":[[4,4,4,5]]}
[null,null,null,null,null,28157416]
[]
[]
[null,null,null,null,null,{"$f":"version","v":"Версия 1.0.1"}]
[null,null,null,null,"Информация о наличии (отсутствии) технической возможности подключения к централизованной системе горячего водоснабжения, а также о регистрации и ходе реализации заявок о подключении к централизованной системе горячего водоснабжения"]
[]
[null,null,null,null,"Субъект РФ","Тамбовская область"]
[]
[null,null,null,null,"Публикация2","На сайте регулирующего органа"]
[]
[null,null,null,null,"Отсутствует Интернет в границах территории МО, где организация осуществляет регулируемые виды деятельности","нет"]
[]
[null,null,null,null,"Тип отчета","первичное раскрытие информации"]
[null,null,null,null,"Дата внесения изменений в информацию, подлежащую раскрытию","01.07.2022"]
[]
[null,null,null,null,"Применяется дифференциация тарифа по централизованным системам теплоснабжения?"]
[null,null,null,null,"Информация по скольким централизованным системам теплоснабжения будет заполнена в шаблоне?"]
[]
[null,null,null,null,null,"Отчетный период"]
[null,null,2022,null,"Год",2022]
[null,null,"II квартал",null,"Квартал","II квартал"]
[]
[null,null,null,null,"Является ли данное юридическое лицо подразделением (филиалом) другой организации","нет"]
[]
[]
[null,null,null,null,"Наименование организации","МУП \"Тамбовтеплосервис\""]
[null,null,null,null,"Наименование филиала"]
[null,null,null,null,"ИНН","6829091716"]
[null,null,null,null,"КПП","682901001"]
[null,null,null,null,"Вид деятельности"]
[]
[null,null,null,null,"Почтовый адрес регулируемой организации","392000 г. Тамбов, ул. К. Маркса, 242"]
[null,null,null,null,"Фамилия, имя, отчество руководителя","Писарогло Максим Викторович"]
[]
[null,null,null,null,null,"Ответственный за составление формы"]
[null,null,null,null,"Фамилия, имя, отчество","Алтухов Вадим Николаевич"]
[null,null,null,null,"Должность","Ведущий инженер производственно-контрактной службы"]
[null,null,null,null,"(код) номер телефона","(4752) 53-09-43 доб. 123"]
[null,null,null,null,"e-mail","pto.tts@mail.ru"]

{"sheet":"Территории","index":4,"n_rows":17,"n_cols":18,"rows_kept":17,"cut":false,"hidden":false,"merged":[[12,7,14,7],[11,2,15,2],[11,3,15,3],[11,4,15,4],[12,5,14,5],[12,6,14,6],[8,5,8,6],[8,8,8,9],[9,5,9,6],[9,8,9,9],[3,3,3,7],[5,3,5,4],[5,5,5,6],[7,3,7,4],[7,5,7,7],[7,8,7,11]]}
[null,null,null,null,null,null,null,null,null,null,"МО","ОКТМО","МР"]
[]
[]
[null,null,null,"Перечень муниципальных районов и муниципальных образований (территорий действия тарифа)"]
[]
[null,null,null,null,null,"да"]
[]
[null,null,null,"Территория действия тарифа",null,"Муниципальный район",null,null,"Муниципальное образование"]
[null,null,null,"№ п/п","Наименование","№ п/п",null,"Наименование","№ п/п",null,"Наименование","ОКТМО"]
[null,null,null,"1","2","3",null,"4","5",null,"6","7"]
[null,null,null,0,null,"",null,null,"",null,null,null,"размерженный МР",null,null,"флаг используемости территории на листе Перечень тарифов","копия территорий","МР (ОКТМО)"]
[null,"auto",null,1,"г Тамбов, г Тамбов (68701000);","",0,null,"","0",null,null,{"$f":"mergeValue(H12)","v":0},null,null,{"$f":"IF(ISERROR(MATCH(MID(Q12,1,250),MID(note_ter,1,250),0)),\"n\",\"y\")","v":"y"},"г Тамбов, г Тамбов (68701000);",{"$f":"K12&\"(\"&L12&\")\"","v":"()"}]
[null,"auto",null,null,null,"",1,"г Тамбов","","0",null,null,{"$f":"mergeValue(H13)","v":"г Тамбов"},null,null,null,null,{"$f":"K13&\"(\"&L13&\")\"","v":"()"}]
[null,"auto",null,null,null,null,null,null,"",1,"г Тамбов","68701000",{"$f":"mergeValue(H14)","v":"г Тамбов"},null,null,null,null,{"$f":"K14&\" (\"&L14&\")\"","v":"г Тамбов (68701000)"}]
[null,null,null,null,null,null,null,null,"",null,""]
[null,null,null,null,null,"","","",""]
[null,"man",null,null,"","",null,null,"",null,null,null,null,null,null,null,"Добавить территорию действия тарифа"]

{"sheet":"Дифференциация","index":5,"n_rows":26,"n_cols":26,"rows_kept":26,"cut":false,"hidden":false,"merged":[[9,4,9,5],[13,1,13,3],[10,4,10,5],[10,1,10,3],[17,0,18,0],[17,3,17,4],[9,1,9,3],[3,3,3,8],[4,3,4,8],[7,4,7,5],[8,1,8,3],[5,0,6,5],[7,1,7,3],[8,4,8,5],[24,2,25,2],[11,1,11,3],[12,1,12,3],[21,4,23,4],[21,5,23,5],[21,3,23,3],[17,5,17,8],[21,6,22,6],[21,7,22,7],[21,8,22,8],[21,9,22,9],[17,9,17,12],[19,6,19,7],[19,10,19,11],[18,10,18,11],[18,6,18,7]]}
[]
[]
[]
[null,null,null,{"$f":"Титульный!E5","v":"Информация о наличии (отсутствии) технической возможности подключения к централизованной системе горячего водоснабжения, а также о регистрации и ходе реализации заявок о подключении к централизованной системе горячего водоснабжения"}]
[null,null,null,{"$f":"IF(org=0,\"Не определено\",org)","v":"МУП \"Тамбовтеплосервис\""}]
[]
[]
[]
[]
[]
[]
[]
[]
[]
[]
[]
[]
[null,null,null,"Вид деятельности",null,"Дифференциация по территориям оказания услуг",null,null,null,"Дифференциация по централизованным системам коммунальной инфраструктуры"]
[null,null,null,"№ п/п","Наименование","да/нет","№ п/п",null,"Наименование","да/нет","№ п/п",null,"Наименование"]
[null,null,null,"1","2","3","4",null,"5","6","7",null,"8"]
[]
[null,null,null,"1","Подключение (технологическое присоединение) к централизованной системе горячего водоснабжения","да",null,1,"г Тамбов, г Тамбов (68701000);","да","","1","Централизованная система горячего водоснабжения",null,null,null,null,null,null,null,null,null,null,4189707,"a",1705000]
[null,null,null,null,null,null,null,null,null,null,"",null,""]
[null,null,null,null,null,null,null,null,"",null,""]
[null,null,null,null,"",null,null,null,null,null,""]
[null,null,null,null,null,null,null,null,null,null,""]

{"sheet":"Форма 1.0.1","index":6,"n_rows":20,"n_cols":7,"rows_kept":20,"cut":false,"hidden":false,"merged":[[19,4,19,5],[4,3,4,6],[5,3,5,6],[7,3,7,6],[8,3,8,5],[8,6,9,6]]}
[null,null,null,null,null,null,4]
[]
[]
[]
[null,null,null,"Форма 1.0.1 Основные параметры раскрываемой информации 1"]
[null,null,null,{"$f":"IF(org=0,\"Не определено\",org)","v":"МУП \"Тамбовтеплосервис\""}]
[]
[null,null,22,"Форма 1.0.1"]
[null,null,null,"Параметры формы",null,null,"Описание параметров формы"]
[null,null,null,"№ п/п","Наименование параметра","Информация"]
[null,null,null,"1",2,3,4]
[null,null,null,1,"Дата заполнения/внесения изменений",{"$f":"IF(form_up_date=\"\",\"\",form_up_date)","v":"01.07.2022"},"Указывается календарная дата первичного заполнения или внесения изменений в форму в виде «ДД.ММ.ГГГГ»."]
[null,null,null,"2.1","Наименование централизованной системы коммунальной инфраструктуры","Централизованная система горячего водоснабжения","Указывается наименование централизованной системы холодного водоснабжения/горячего водоснабжения/водоотведения/теплоснабжения, к которой относится размещаемая информация.\nВ случае наличия нескольких централизованных систем коммунальной инфраструктуры, информация по каждой из них указывается в отдельной строке. "]
[null,null,null,"3.1","Наименование регулируемого вида деятельности","Подключение (технологическое присоединение) к централизованной системе горячего водоснабжения","Указывается наименование вида регулируемой деятельности."]
[null,null,null,"4.1","Территория оказания услуги по регулируемому виду деятельности","x"]
[null,null,null,{"$f":"D15&\".1\"","v":"4.1.1"},"Субъект РФ",{"$f":"IF(region_name=\"\",\"\",region_name)","v":"Тамбовская область"},"Указывается наименование субъекта Российской Федерации"]
[null,null,null,"4.1.1.1","муниципальный район","г Тамбов","Указывается наименование муниципального района, на территории которого организация оказывает услуги по регулируемому виду деятельности."]
[null,null,null,"4.1.1.1.1","муниципальное образование","г Тамбов (68701000)","Указывается наименование и код муниципального района, муниципального образования в соответствии с Общероссийским классификатором территорий муниципальных образований (далее - ОКТМО), входящего в муниципальный район, на территории которого организация оказывает услуги по регулируемому виду деятельности.\nВ случае оказания услуг по регулируемому виду деятельности на территории нескольких муниципальных районов (муниципальных образований) данные по каждому их них указываются в отдельной строке."]
[]
[null,null,null,null,"  1 Информация по данной форме публикуется при раскрытии информации по каждой из форм."]

{"sheet":"Форма 1.7","index":7,"n_rows":18,"n_cols":8,"rows_kept":18,"cut":false,"hidden":false,"merged":[[7,7,8,7],[4,3,4,6],[5,3,5,6],[7,3,8,3],[7,4,8,4],[7,5,8,5]]}
[null,null,null,null,null,null,4]
[null,null,null,null,null,"тыс.куб.м/сутки",null,"Указывается резерв мощности для централизованной системы горячего водоснабжения, тариф для которой не является отличным от тарифов других централизованных систем горячего водоснабжения регулируемой организации.\nПри использовании регулируемой организацией нескольких централизованных систем горячего водоснабжения информация о резерве мощности таких систем указывается в отношении каждой централизованной системы горячего водоснабжения в отдельных строках."]
[]
[]
[null,null,null,{"$f":"Титульный!E5","v":"Информация о наличии (отсутствии) технической возможности подключения к централизованной системе горячего водоснабжения, а также о регистрации и ходе реализации заявок о подключении к централизованной системе горячего водоснабжения"}]
[null,null,null,{"$f":"IF(org=0,\"Не определено\",org)","v":"МУП \"Тамбовтеплосервис\""}]
[null,null,null,null,null,null,22]
[null,null,null,"№ п/п","Наименование параметра","Единица измерения","Вид деятельности:\r\n  - Подключение (технологическое присоединение) к централизованной системе горячего водоснабжения\r\n\r\nТерритория оказания услуг:\r\n  - г Тамбов, г Тамбов (68701000);\r\n\r\nЦентрализованная система горячего водоснабжения:\r\n  - Централизованная система горячего водоснабжения","Описание параметров формы"]
[null,null,null,null,null,null,"Информация"]
[null,null,null,"1","2","3",{"$f":"G1&\".1\"","v":"4.1"}]
[null,null,null,1,"Количество поданных заявок","ед",0,"Указывается количество поданных заявок на подключение (технологическое присоединение) к централизованной системе горячего водоснабжения в течение отчетного квартала."]
[null,null,null,2,"Количество исполненных заявок","ед",0,"Указывается количество исполненных заявок на подключение (технологическое присоединение) к централизованной системе горячего водоснабжения в течение отчетного квартала."]
[null,null,null,3,"Количество заявок с решением об отказе в подключении","ед",0,"Указывается количество заявок с решением об отказе в подключении (технологическом присоединении) к централизованной системе горячего водоснабжения в течение отчетного квартала."]
[null,null,null,4,"Причины отказа в подключении","x",null,"Указывается текстовое описание причин принятия решений об отказе в подключении (технологическом присоединении) к централизованной системе горячего водоснабжения.\nНе заполняется в случае, если решения об отказе в подключении (технологическом присоединении) в течение отчетного периода не принимались."]
[null,null,null,5,"Резерв мощности централизованной системы горячего водоснабжения в течение квартала, в том числе:","тыс.куб.м/сутки",{"$f":"SUM(G16:G18)","v":48.792617775619235},"Указывается резерв мощности централизованной системы горячего водоснабжения (совокупности централизованных систем горячего водоснабжения) в случае, если для них установлены одинаковые тарифы в сфере горячего водоснабжения.\nВ случае если регулируемыми организациями оказываются услуги по горячему водоснабжению по нескольким технологически не связанным между собой централизованным системам горячего водоснабжения, и если в отношении указанных систем устанавливаются различные тарифы в сфере горячего водоснабжения, то информация раскрывается отдельно по каждой централизованной системе горячего водоснабжения."]
[null,null,null,"5.0"]
[null,null,null,"5.1","Централизованная система горячего водоснабжения","тыс.куб.м/сутки",{"$f":"125.58/0.06177*24/1000","v":48.792617775619235},"Указывается резерв мощности для централизованной системы горячего водоснабжения, тариф для которой не является отличным от тарифов других централизованных систем горячего водоснабжения регулируемой организации.\nПри использовании регулируемой организацией нескольких централизованных систем горячего водоснабжения информация о резерве мощности таких систем указывается в отношении каждой централизованной системы горячего водоснабжения в отдельных строках."]
[null,null,null,null,"Добавить централизованную систему горячего водоснабжения"]

{"sheet":"Сведения об изменении","index":8,"n_rows":14,"n_cols":5,"rows_kept":14,"cut":false,"hidden":true,"merged":[[6,3,6,4],[7,3,7,4]]}
[]
[]
[]
[]
[]
[]
[null,null,null,"Сведения об изменениях в первоначально опубликованной информации"]
[null,null,null,{"$f":"IF(org=0,\"Не определено\",org)","v":"МУП \"Тамбовтеплосервис\""}]
[]
[null,null,null,"№ п/п","Сведения"]
[null,null,null,"1","2"]
[null,null,null,0]
[null,null,null,1]
[null,null,null,null,"Добавить строку"]

{"sheet":"Форма 1.0.2","index":9,"n_rows":15,"n_cols":13,"rows_kept":15,"cut":false,"hidden":true,"merged":[[11,10,12,10],[14,4,14,9],[4,3,4,9],[7,3,7,9],[7,10,9,10],[8,3,9,3],[8,4,8,5],[8,6,8,9]]}
[]
[]
[]
[]
[null,null,null,"Форма 1.0.2 Информация о публикации в печатных изданиях 2"]
[]
[]
[null,null,null,"Параметры формы",null,null,null,null,null,null,"Описание параметров формы"]
[null,null,null,"№ п/п","Форма публикации",null,"Официальное печатное издание"]
[null,null,null,null,"Номер","Наименование","Наименование","Номер","Дата выпуска","Ссылка на документ"]
[null,null,null,"1","2","3","4","5","6","7","8"]
["3","",null,"1",null,null,null,null,null,null,"В колонке «Дата выпуска» дата выпуска печатного издания указывается в виде «ДД.ММ.ГГГГ».\nВ колонке «Ссылка на документ» указывается ссылка на отсканированную копию печатного издания, предварительно загруженную в хранилище федеральной государственной информационной системы «Единая информационно-аналитическая система «Федеральный орган регулирования - региональные органы регулирования - субъекты регулирования» (далее – ФГИС ЕИАС), с опубликованной информацией.\nВ случае публикации информации в нескольких печатных изданиях информация по каждому из них указывается в отдельной строке.",null,{"$f":"IF(ISERROR(INDEX(kind_of_nameforms,MATCH(E12,kind_of_forms,0),1)),\"\",INDEX(kind_of_nameforms,MATCH(E12,kind_of_forms,0),1))","v":""}]
[null,null,null,null,"Добавить строку"]
[]
[null,null,null,null,"2 В данной форме публикуется информация по каждой из форм раскрытия, данные в которой относятся к муниципальному образованию, в котором отсутствует доступ в информационно-телекоммуникационную сеть «Интернет» (далее – сеть «Интернет»)."]

{"sheet":"Комментарии","index":10,"n_rows":13,"n_cols":5,"rows_kept":13,"cut":false,"hidden":false,"merged":[[6,3,6,4],[7,3,7,4]]}
[]
[]
[]
[]
[]
[]
[null,null,null,"Комментарии"]
[null,null,null,{"$f":"IF(org=0,\"Не определено\",org)","v":"МУП \"Тамбовтеплосервис\""}]
[]
[null,null,null,"№ п/п","Комментарий"]
[null,null,null,"1","2"]
[null,null,null,0]
[null,null,null,null,"Добавить"]

{"sheet":"Проверка","index":11,"n_rows":4,"n_cols":5,"rows_kept":4,"cut":false,"hidden":false,"merged":[[1,1,1,4]]}
[]
[null,"Результат проверки"]
[]
[null,"Ссылка1","Ссылка2","Причина","Статус"]

{"sheet":"modReestr","index":12,"n_rows":0,"n_cols":0,"rows_kept":0,"cut":false,"hidden":true,"merged":[]}

{"sheet":"AllSheetsInThisWorkbook","index":13,"n_rows":39,"n_cols":2,"rows_kept":39,"cut":false,"hidden":true,"merged":[]}
["Расчетные листы","Скрытые листы"]
["Инструкция","modProv"]
["Лог обновления","modReestr"]
["Титульный","AllSheetsInThisWorkbook"]
["Территории","TEHSHEET"]
["Дифференциация","modCheckCyan"]
["Форма 1.0.1","modInfo"]
["Форма 1.7","et_union_hor"]
["Сведения об изменении","et_union_vert"]
["Форма 1.0.2","modList00"]
["Комментарии","modList01"]
["Проверка","modList02"]
[null,"modList03"]
[null,"modList04"]
[null,"modList07"]
[null,"modList09"]
[null,"modHTTP"]
[null,"modfrmRegion"]
[null,"MR_LIST"]
[null,"REESTR_VT"]
[null,"REESTR_VED"]
[null,"modfrmReestrObj"]
[null,"DataOrg"]
[null,"modfrmReestr"]
[null,"modUpdTemplMain"]
[null,"REESTR_ORG"]
[null,"modClassifierValidate"]
[null,"modHyp"]
[null,"modfrmDateChoose"]
[null,"modComm"]
[null,"modThisWorkbook"]
[null,"REESTR_MO"]
[null,"REESTR_MO_FILTER"]
[null,"modfrmReestrMR"]
[null,"modServiceModule"]
[null,"modfrmCheckUpdates"]
[null,"REESTR_DS"]
[null,"REESTR_CHS"]
[null,"REESTR_LINK"]

{"sheet":"TEHSHEET","index":14,"n_rows":87,"n_cols":20,"rows_kept":87,"cut":false,"hidden":true,"merged":[[0,18,0,19]]}
["REGION",null,"year_list","logical","Месяц\n(MONTH)","Квартал\n(QUARTER)","Месяц\n(kind_of_publication)","Единица измерения объема оказываемых услуг ГВС\n/kind_of_unit_GVS/","Вид тарифа\n/list_of_tariff/","mr_id","версия шаблона\n (DocProp_Version)","0.1","Тип отчета\ndata_type",null,null,null,null,null,"Перечень форм\n(kind_of_forms)"]
["Алтайский край",null,2015,"да","январь","I квартал","На официальном сайте организации","тыс.куб.м/сутки",null,52,"код шаблона\n(DocProp_TemplateCode)","FAS.JKH.OPEN.INFO.QUARTER.HVS","первичное раскрытие информации",null,null,null,null,null,"Форма 1.0.1","Основные параметры раскрываемой информации"]
["Амурская область",null,2016,"нет","февраль","II квартал","На сайте регулирующего органа","Гкал/час","Без дифференциации","sys_id","сфера\n(TSphere)","ХВС","изменения в раскрытой ранее информации",null,null,null,null,null,"Форма 1.7",{"$f":"Титульный!E5","v":"Информация о наличии (отсутствии) технической возможности подключения к централизованной системе горячего водоснабжения, а также о регистрации и ходе реализации заявок о подключении к централизованной системе горячего водоснабжения"}]
["Архангельская область",null,2017,null,"март","III квартал",null,"куб.м/час",null,104,"сфера(латиница)\n(TSphere_trans)","VS"]
["Астраханская область",null,2018,null,"апрель","IV квартал",null,null,null,null,"сфера расширено\n(TSphere_full)"]
["Белгородская область",null,2019,null,"май"]
["Брянская область",null,2020,null,"июнь"]
["Владимирская область",null,2021,null,"июль",null,null,null,null,null,"true"]
["Волгоградская область",null,2022,null,"август"]
["Вологодская область",null,null,null,"сентябрь"]
["Воронежская область",null,null,null,"октябрь"]
["г.Байконур",null,null,null,"ноябрь"]
["г. Москва",null,null,null,"декабрь"]
["г.Санкт-Петербург"]
["г.Севастополь"]
["Еврейская автономная область",null,null,null,null,null,"Текущая дата"]
["Забайкальский край",null,"Организация",{"$f":"IF(f_year = \"\",\"\", IF(LEN(f_quart)=0,\"\",IF(f_quart=\"I квартал\", \"01.01.\"&f_year,IF(f_quart=\"II квартал\",\"01.04.\"&f_year,(IF(f_quart=\"III квартал\", \"01.07.\"&f_year,\"01.10.\"&f_year)))) ))","v":"01.04.2022"},{"$f":"IF(f_year = \"\",\"\", IF(LEN(f_quart)=0,\"\",IF(f_quart=\"I квартал\", \"31.03.\"& f_year,IF(f_quart=\"II квартал\",\"30.06.\"& f_year,(IF(f_quart=\"III квартал\", \"30.09.\"& f_year,\"31.12.\"& f_year)))) ))","v":"30.06.2022"},null,"01.07.2022 15:25:20"]
["Ивановская область"]
["Иркутская область",null,null,null,null,null,"Признак изменения данных на листе Доступ к товарам и услугам"]
["Кабардино-Балкарская республика",null,"Виды деятельности",null,null,null,true]
["Калининградская область"]
["Калужская область"]
["Камчатский край"]
["Карачаево-Черкесская республика"]
["Кемеровская область"]
["Кировская область"]
["Костромская область"]
["Краснодарский край"]
["Красноярский край"]
["Курганская область"]
["Курская область"]
["Ленинградская область"]
["Липецкая область"]
["Магаданская область"]
["Московская область"]
["Мурманская область"]
["Ненецкий автономный округ"]
["Нижегородская область"]
["Новгородская область"]
["Новосибирская область"]
["Омская область"]
["Оренбургская область"]
["Орловская область"]
["Пензенская область"]
["Пермский край"]
["Приморский край"]
["Псковская область"]
["Республика Адыгея"]
["Республика Алтай"]
["Республика Башкортостан"]
["Республика Бурятия"]
["Республика Дагестан"]
["Республика Ингушетия"]
["Республика Калмыкия"]
["Республика Карелия"]
["Республика Коми"]
["Республика Крым"]
["Республика Марий Эл"]
["Республика Мордовия"]
["Республика Саха (Якутия)"]
["Республика Северная Осетия-Алания"]
["Республика Татарстан"]
["Республика Тыва"]
["Республика Хакасия"]
["Ростовская область"]
["Рязанская область"]
["Самарская область"]
["Саратовская область"]
["Сахалинская область"]
["Свердловская область"]
["Смоленская область"]
["Ставропольский край"]
["Тамбовская область"]
["Тверская область"]
["Томская область"]
["Тульская область"]
["Тюменская область"]
["Удмуртская республика"]
["Ульяновская область"]
["Хабаровский край"]
["Ханты-Мансийский автономный округ"]
["Челябинская область"]
["Чеченская республика"]
["Чувашская республика"]
["Чукотский автономный округ"]
["Ямало-Ненецкий автономный округ"]
["Ярославская область"]

{"sheet":"modCheckCyan","index":15,"n_rows":10,"n_cols":1,"rows_kept":10,"cut":false,"hidden":true,"merged":[]}
[]
[{"$f":"IF('Сведения об изменении'!$E$13=\"\",1,0)","v":1}]
[{"$f":"IF(Дифференциация!$E$22=\"\",1,0)","v":0}]
[{"$f":"IF(Территории!$E$12=\"\",1,0)","v":0}]
[{"$f":"IF(Дифференциация!$I$22=\"\",1,0)","v":0}]
[{"$f":"IF(Дифференциация!$M$22=\"\",1,0)","v":0}]
[{"$f":"IF('Форма 1.7'!$G$11=\"\",1,0)","v":0}]
[{"$f":"IF('Форма 1.7'!$G$12=\"\",1,0)","v":0}]
[{"$f":"IF('Форма 1.7'!$G$13=\"\",1,0)","v":0}]
[{"$f":"IF('Форма 1.7'!$E$17=\"\",1,0)","v":0}]

{"sheet":"modInfo","index":16,"n_rows":11,"n_cols":2,"rows_kept":11,"cut":false,"hidden":true,"merged":[[4,3,4,10],[0,3,0,10],[1,3,1,10],[2,3,2,10],[3,3,3,10]]}
[null,"Территории"]
[1,"Наименование территории оказания услуг для целей идентификации"]
[2,"Муниципальные районы и муниципальные образования, на территории которых осуществляется оказание услуг"]
[null,"Дифференциация"]
[1,"В случае, если регулируемая организация осуществляет несколько видов деятельности, информация о которых подлежит раскрытию, информация по каждому виду деятельности раскрывается отдельно."]
[2,"Поле заполняется выбором значений из списка. Если значений для выбора нет - убедитесь, что лист \"Территории\" заполнен."]
[3,"Условное наименование централизованной системы коммунальной инфраструктуры для целей идентификации."]
[4,"В случае, если регулируемыми организациями оказываются услуги по нескольким технологически не связанным между собой  централизованным системам коммунальной инфраструктуры и если в отношении указанных централизованных систем устанавливаются различные тарифы, то информация раскрывается отдельно по каждой централизованной системе коммунальной инфраструктуры."]
[null,"Сведения об изменении"]
[1,"Лист заполняется в случае, если на Титульном листе в поле \"Тип отчета\" выбрано значение «Изменения в раскрытой ранее информации»."]
[null,"Нет доступных обновлений, версия отчёта актуальна"]

{"sheet":"et_union_hor","index":17,"n_rows":60,"n_cols":26,"rows_kept":60,"cut":false,"hidden":true,"merged":[[50,3,50,5],[50,6,51,6],[49,3,49,6],[28,3,30,3],[28,4,30,4],[28,5,30,5],[28,6,29,6],[34,6,35,6],[19,6,20,6],[34,8,35,8],[34,9,35,9],[28,8,29,8],[28,9,29,9],[19,7,20,7],[28,7,29,7],[34,7,35,7],[14,2,15,2],[14,3,15,3],[14,4,15,4],[19,2,20,2],[19,5,20,5]]}
[]
[]
["et_Comm"]
[]
[]
[]
["et_List04"]
[]
[]
[]
[]
[]
["et_List09_0"]
[]
[null,"auto",null,1,null,null,0,null,null,"0",null,null,{"$f":"mergeValue(H15)","v":0},null,null,{"$f":"IF(ISERROR(MATCH(MID(Q15,1,250),MID(note_ter,1,250),0)),\"n\",\"y\")","v":"y"},null,{"$f":"K15&\"(\"&L15&\")\"","v":"()"}]
[null,null,null,null,null,null,null,"Добавить МР"]
[]
["et_List09_1"]
[]
[null,"auto",null,null,null,null,0,null,null,"0",null,null,{"$f":"mergeValue(H20)","v":0},null,null,null,null,{"$f":"K20&\"(\"&L20&\")\"","v":"()"}]
[null,null,null,null,null,null,null,null,null,null,"Добавить МО"]
[]
["et_List09_2"]
[]
[null,"auto",null,null,null,null,null,null,null,0,null,null,{"$f":"mergeValue(H25)","v":0},null,null,null,null,{"$f":"K25&\" (\"&L25&\")\"","v":" ()"}]
[]
["et_List07_1"]
[]
[null,null,null,"1",null,"нет",null,1,null,"нет",null,"1",null,null,null,null,null,null,null,null,null,null,null,null,"a",1705000]
[null,null,null,null,null,null,null,null,null,null,null,null,"Добавить централизованную систему коммунальной инфраструктуры"]
[null,null,null,null,null,null,null,null,"Добавить описание территории оказания услуг"]
[]
["et_List07_4"]
[]
[null,null,null,null,null,null,null,1,null,"нет",null,"1",null,null,null,null,null,null,null,null,null,null,null,null,"a",1705000]
[null,null,null,null,null,null,null,null,null,null,null,null,"Добавить централизованную систему коммунальной инфраструктуры"]
[]
["et_List07_5"]
[]
[null,null,null,null,null,null,null,null,null,null,null,"1",null,null,null,null,null,null,null,null,null,null,null,null,"a",1705000]
[]
[]
["et_List03"]
[]
["3","",null,null,null,null,null,null,null,null,null,null,{"$f":"IF(ISERROR(INDEX(kind_of_nameforms,MATCH(E45,kind_of_forms,0),1)),\"\",INDEX(kind_of_nameforms,MATCH(E45,kind_of_forms,0),1))","v":""}]
[]
["et_List02_st","et_List02_ter","et_List02_mr","et_List02_mo"]
[]
[]
[null,null,null,"Форма 1.0.1"]
[null,null,null,"Параметры формы",null,null,"Описание параметров формы"]
[null,null,null,"№ п/п","Наименование параметра","Информация"]
[null,null,null,"1",2,3,4]
[null,null,null,1,"Дата заполнения/внесения изменений",{"$f":"IF(form_up_date=\"\",\"\",form_up_date)","v":"01.07.2022"},"Указывается календарная дата первичного заполнения или внесения изменений в форму в виде «ДД.ММ.ГГГГ»."]
[null,null,null,"2.1","Наименование централизованной системы коммунальной инфраструктуры",null,"Указывается наименование централизованной системы холодного водоснабжения/горячего водоснабжения/водоотведения/теплоснабжения, к которой относится размещаемая информация.\nВ случае наличия нескольких централизованных систем коммунальной инфраструктуры, информация по каждой из них указывается в отдельной строке. "]
[null,null,null,"3.1","Наименование регулируемого вида деятельности",null,"Указывается наименование вида регулируемой деятельности."]
[null,null,null,"4.1","Территория оказания услуги по регулируемому виду деятельности","x"]
[null,null,null,{"$f":"D57&\".1\"","v":"4.1.1"},"Субъект РФ",{"$f":"IF(region_name=\"\",\"\",region_name)","v":"Тамбовская область"},"Указывается наименование субъекта Российской Федерации"]
[null,null,null,"4.1.1.1","муниципальный район",null,"Указывается наименование муниципального района, на территории которого организация оказывает услуги по регулируемому виду деятельности."]
[null,null,null,"4.1.1.1.1","муниципальное образование",null,"Указывается наименование и код муниципального района, муниципального образования в соответствии с Общероссийским классификатором территорий муниципальных образований (далее - ОКТМО), входящего в муниципальный район, на территории которого организация оказывает услуги по регулируемому виду деятельности.\nВ случае оказания услуг по регулируемому виду деятельности на территории нескольких муниципальных районов (муниципальных образований) данные по каждому их них указываются в отдельной строке."]

{"sheet":"et_union_vert","index":18,"n_rows":0,"n_cols":0,"rows_kept":0,"cut":false,"hidden":true,"merged":[]}

{"sheet":"modList00","index":19,"n_rows":0,"n_cols":0,"rows_kept":0,"cut":false,"hidden":true,"merged":[]}

{"sheet":"modList01","index":20,"n_rows":0,"n_cols":0,"rows_kept":0,"cut":false,"hidden":true,"merged":[]}

{"sheet":"modList02","index":21,"n_rows":0,"n_cols":0,"rows_kept":0,"cut":false,"hidden":true,"merged":[]}

{"sheet":"modList03","index":22,"n_rows":0,"n_cols":0,"rows_kept":0,"cut":false,"hidden":true,"merged":[]}

{"sheet":"modList04","index":23,"n_rows":0,"n_cols":0,"rows_kept":0,"cut":false,"hidden":true,"merged":[]}

{"sheet":"modList07","index":24,"n_rows":0,"n_cols":0,"rows_kept":0,"cut":false,"hidden":true,"merged":[[5,0,6,1],[17,0,18,0]]}

{"sheet":"modList09","index":25,"n_rows":0,"n_cols":0,"rows_kept":0,"cut":false,"hidden":true,"merged":[]}

{"sheet":"modHTTP","index":26,"n_rows":0,"n_cols":0,"rows_kept":0,"cut":false,"hidden":true,"merged":[]}

{"sheet":"modfrmRegion","index":27,"n_rows":0,"n_cols":0,"rows_kept":0,"cut":false,"hidden":true,"merged":[]}

{"sheet":"MR_LIST","index":28,"n_rows":0,"n_cols":0,"rows_kept":0,"cut":false,"hidden":true,"merged":[]}

{"sheet":"REESTR_VT","index":29,"n_rows":0,"n_cols":0,"rows_kept":0,"cut":false,"hidden":true,"merged":[]}

{"sheet":"REESTR_VED","index":30,"n_rows":4,"n_cols":2,"rows_kept":4,"cut":false,"hidden":true,"merged":[]}
["ID_TARIFF_NAME","VED_NAME"]
[4189706,"Горячее водоснабжение"]
[4189705,"Транспортировка"]
[4189707,"Подключение (технологическое присоединение) к централизованной системе горячего водоснабжения"]

{"sheet":"modfrmReestrObj","index":31,"n_rows":0,"n_cols":0,"rows_kept":0,"cut":false,"hidden":true,"merged":[]}

{"sheet":"DataOrg","index":32,"n_rows":0,"n_cols":0,"rows_kept":0,"cut":false,"hidden":true,"merged":[]}

{"sheet":"modfrmReestr","index":33,"n_rows":0,"n_cols":0,"rows_kept":0,"cut":false,"hidden":true,"merged":[]}

{"sheet":"modUpdTemplMain","index":34,"n_rows":0,"n_cols":0,"rows_kept":0,"cut":false,"hidden":true,"merged":[]}

{"sheet":"REESTR_ORG","index":35,"n_rows":48,"n_cols":10,"rows_kept":48,"cut":false,"hidden":true,"merged":[]}
["№","REGION_ID","REGION_NAME","RST_ORG_ID","ORG_NAME","INN_NAME","KPP_NAME","ORG_START_DATE","ORG_END_DATE"]
[1,"2600","Тамбовская область","28796046","АО \"ГТ Энерго\"","7703806647","772801001",null,null,"HOT_VS"]
[2,"2600","Тамбовская область","30335229","АО \"ГУ ЖКХ\"","5116000922","770401001",null,null,"HOT_VS"]
[3,"2600","Тамбовская область","26838066","АО \"РЭУ\"","7714783092","770401001",null,null,"HOT_VS"]
[4,"2600","Тамбовская область","26359914","АО \"Санаторий \"Энергетик\"","6820019240","682001001",null,null,"HOT_VS"]
[5,"2600","Тамбовская область","26804267","АО \"ТЗ \"Ревтруд\"","6829024766","682950001",null,null,"HOT_VS"]
[6,"2600","Тамбовская область","26322024","АО \"Тамбовская сетевая компания\"","6829012231","682901001",null,null,"HOT_VS"]
[7,"2600","Тамбовская область","26473010","АО \"Тамбовские коммунальные системы\"","6832041909","682901001",null,null,"HOT_VS"]
[8,"2600","Тамбовская область","26516372","АО \"Транснефть - Дружба\"","3235002178","682702001",null,null,"HOT_VS"]
[9,"2600","Тамбовская область","26812367","Куйбышевская дирекция  по тепловодоснабжению структурное подразделение Центральной дирекции по тепловодоснабжению филиала ПАО «РЖД»","7708503727","631145034",null,null,"HOT_VS"]
[10,"2600","Тамбовская область","26359943","МУП \"Тамбовинвестсервис\"","6829013588","682901001",null,null,"HOT_VS"]
[11,"2600","Тамбовская область","28157416","МУП \"Тамбовтеплосервис\"","6829091716","682901001",null,null,"HOT_VS"]
[12,"2600","Тамбовская область","26359936","МУП \"Теплосервис\"","6827015036","682701001",null,null,"HOT_VS"]
[13,"2600","Тамбовская область","26359928","МУП Тепловых сетей города Моршанска","6826005613","682601001",null,null,"HOT_VS"]
[14,"2600","Тамбовская область","26359931","ОАО \"Мичуринский завод \"Прогресс\"","6827005976","682750001",null,null,"HOT_VS"]
[15,"2600","Тамбовская область","26359906","ОАО \"Первомайскхиммаш\"","6812000252","681201001",null,null,"HOT_VS"]
[16,"2600","Тамбовская область","26516355","ОАО \"РЖД\" в лице Мичуринского территориального участка Юго-Восточной дирекции по тепловодоснабжению - стуктурного подразделения Центральной дирекции по тепловодоснабжению","7708503727","996501001",null,null,"HOT_VS"]
[17,"2600","Тамбовская область","26613790","ОАО \"Тамбовский хлебозавод\"","6833000366","683301001",null,null,"HOT_VS"]
[18,"2600","Тамбовская область","28870008","ОАО «Искож»","6825002850","682501001",null,null,"HOT_VS"]
[19,"2600","Тамбовская область","31222140","ООО \"БП-ЭНЕРГОСЕРВИС\"","6825007720","682501001",null,null,"HOT_VS"]
[20,"2600","Тамбовская область","28455715","ООО \"Вектор\"","6807008538","680701001",null,null,"HOT_VS"]
[21,"2600","Тамбовская область","26766398","ООО \"Жилищно-коммунальные системы\"","6820027554","680401001",null,null,"HOT_VS"]
[22,"2600","Тамбовская область","31251583","ООО \"Коммунальник\"","6804008794","680401001",null,null,"HOT_VS"]
[23,"2600","Тамбовская область","28943177","ООО \"Комплексные коммунальные системы\"","6827024231","682701001",null,null,"HOT_VS"]
[24,"2600","Тамбовская область","28493433","ООО \"Котовская ТЭЦ\"","6825005970","682501001",null,null,"HOT_VS"]
[25,"2600","Тамбовская область","31593674","ООО \"Ляда-Сервис\"","6820037400","682001001","20-09-2016 00:00:00",null,"HOT_VS"]
[26,"2600","Тамбовская область","26516412","ООО \"Модульные котельные - Н\"","6820019610","682001001",null,null,"HOT_VS"]
[27,"2600","Тамбовская область","28088907","ООО \"Никифоровское жилищно - коммунальное хозяйство\"","6811006597","681101001",null,null,"HOT_VS"]
[28,"2600","Тамбовская область","30359950","ООО \"Рекон\"","6829095005","682901001",null,null,"HOT_VS"]
[29,"2600","Тамбовская область","26359910","ООО \"Сатинские теплосети\"","6817003803","681701001",null,null,"HOT_VS"]
[30,"2600","Тамбовская область","30873827","ООО \"ТТК\"","6829121079","682901001",null,null,"HOT_VS"]
[31,"2600","Тамбовская область","31529445","ООО \"Тамбов-15\"","6829154606","682901001",null,null,"HOT_VS"]
[32,"2600","Тамбовская область","31486358","ООО \"Теплоконтакт\"","6829151980","682901001",null,null,"HOT_VS"]
[33,"2600","Тамбовская область","26359933","ООО \"Экспериментальный центр \"М-КОНС-1\"","6827014025","682701001",null,null,"HOT_VS"]
[34,"2600","Тамбовская область","26359921","ООО \"ляда-сервис\"","6820025571","682001001",null,null,"HOT_VS"]
[35,"2600","Тамбовская область","30992435","ООО «Компьюлинк Инфраструктуктура ТО»","6825007199","682501001",null,null,"HOT_VS"]
[36,"2600","Тамбовская область","30850960","ООО «Стройтеплосервис»","6811006861","681101001","10-11-2016 00:00:00",null,"HOT_VS"]
[37,"2600","Тамбовская область","30850985","ООО «Тамбовская тепловая компания»","6811006854","681101001","10-11-2016 00:00:00",null,"HOT_VS"]
[38,"2600","Тамбовская область","30366049","ОП \"Воронежское\" АО \"ГУ ЖКХ\"","5116000922","366445001","21-10-2015 00:00:00",null,"HOT_VS"]
[39,"2600","Тамбовская область","28455698","ТОГБПОУ \"Аграрно-технологический техникум\"","6820030652","682001001",null,null,"HOT_VS"]
[40,"2600","Тамбовская область","26359913","ТОГОУ СПО \"Многопрофильный колледж им. И.Т.Карасева\", п.Строитель","6820010543","682001001",null,null,"HOT_VS"]
[41,"2600","Тамбовская область","26614711","Тамбовский вагоноремонтный завод - Филиал АО \"Вагонреммаш\"","7722648033","682902001",null,null,"HOT_VS"]
[42,"2600","Тамбовская область","26359929","ФГБОУ ВО Мичуринский ГАУ","6827002894","682701001",null,null,"HOT_VS"]
[43,"2600","Тамбовская область","30903763","ФГБУ \"ЦЖКУ\" МИНОБОРОНЫ РОССИИ","7729314745","770101001",null,null,"HOT_VS"]
[44,"2600","Тамбовская область","27135237","Филиал ОАО \"РЭУ\" \"Курский\"","7714783092","463243001",null,null,"HOT_VS"]
[45,"2600","Тамбовская область","30373614","Филиал ПАО «Квадра - Тамбовская генерация»","6829012680","682943001",null,null,"HOT_VS"]
[46,"2600","Тамбовская область","30941480","Филиал ФГБУ \"ЦЖКУ\" Минобороны России по ЗВО","7729314745","784243001",null,null,"HOT_VS"]
[47,"2600","Тамбовская область","26456106","Юго-Восточная дирекция по тепловодоснабжению - структурное подразделение Центральной дирекции по тепловодоснабжению - филиала ОАО \"РЖД\"","7708503727","770801002",null,null,"HOT_VS"]

{"sheet":"modClassifierValidate","index":36,"n_rows":0,"n_cols":0,"rows_kept":0,"cut":false,"hidden":true,"merged":[]}

{"sheet":"modHyp","index":37,"n_rows":0,"n_cols":0,"rows_kept":0,"cut":false,"hidden":true,"merged":[]}

{"sheet":"modfrmDateChoose","index":38,"n_rows":0,"n_cols":0,"rows_kept":0,"cut":false,"hidden":true,"merged":[]}

{"sheet":"modComm","index":39,"n_rows":0,"n_cols":0,"rows_kept":0,"cut":false,"hidden":true,"merged":[]}

{"sheet":"modThisWorkbook","index":40,"n_rows":0,"n_cols":0,"rows_kept":0,"cut":false,"hidden":true,"merged":[]}

{"sheet":"REESTR_MO","index":41,"n_rows":275,"n_cols":4,"rows_kept":275,"cut":false,"hidden":true,"merged":[]}
["№","МР","МО","МО_ОКТМО"]
[1,"Бондарский муниципальный район","Бондарский муниципальный район","68602000"]
[2,"Бондарский муниципальный район","Бондарский сельсовет","68602405"]
[3,"Бондарский муниципальный район","Граждановский сельсовет","68602410"]
[4,"Бондарский муниципальный район","Кёршинский сельсовет","68602415"]
[5,"Бондарский муниципальный район","Кривополянский сельсовет","68602420"]
[6,"Бондарский муниципальный район","Митропольский сельсовет","68602440"]
[7,"Бондарский муниципальный район","Нащёкинский сельсовет","68602445"]
[8,"Бондарский муниципальный район","Пахотноугловский сельсовет","68602450"]
[9,"Бондарский муниципальный район","Прибыткинский сельсовет","68602455"]
[10,"Гавриловский муниципальный район","Булгаковский сельсовет","68603403"]
[11,"Гавриловский муниципальный район","Гавриловский 2-й сельсовет","68603410"]
[12,"Гавриловский муниципальный район","Гавриловский муниципальный район","68603000"]
[13,"Гавриловский муниципальный район","Козьмодемьяновский сельсовет","68603430"]
[14,"Гавриловский муниципальный район","Осино-Гайский сельсовет","68603438"]
[15,"Гавриловский муниципальный район","Пересыпкинский сельсовет","68603441"]
[16,"Гавриловский муниципальный район","Чуповский сельсовет","68603458"]
[17,"Жердевский муниципальный район","Алексеевский сельсовет","68604405"]
[18,"Жердевский муниципальный район","Бурнакский сельсовет","68604410"]
[19,"Жердевский муниципальный район","Володарский сельсовет","68604415"]
[20,"Жердевский муниципальный район","Вязовский сельсовет","68604420"]
[21,"Жердевский муниципальный район","Демьяновский сельсовет","68604430"]
[22,"Жердевский муниципальный район","Жердевский муниципальный район","68604000"]
[23,"Жердевский муниципальный район","Новорусановский сельсовет","68604440"]
[24,"Жердевский муниципальный район","Пичаевский сельсовет","68604450"]
[25,"Жердевский муниципальный район","Преображеновский сельсовет","68604455"]
[26,"Жердевский муниципальный район","Сукмановский сельсовет","68604460"]
[27,"Жердевский муниципальный район","Туголуковский сельсовет","68604465"]
[28,"Жердевский муниципальный район","Шпикуловский сельсовет","68604470"]
[29,"Жердевский муниципальный район","город Жердевка","68604101"]
[30,"Знаменский муниципальный район","Александровский сельсовет","68606405"]
[31,"Знаменский муниципальный район","Воронцовский сельсовет","68606415"]
[32,"Знаменский муниципальный район","Дуплято-Масловский сельсовет","68606420"]
[33,"Знаменский муниципальный район","Знаменский муниципальный район","68606000"]
[34,"Знаменский муниципальный район","Знаменский поссовет","68606151"]
[35,"Знаменский муниципальный район","Кузьминский сельсовет","68606430"]
[36,"Знаменский муниципальный район","Никольский сельсовет","68606435"]
[37,"Знаменский муниципальный район","Покрово-Марфинский сельсовет","68606445"]
[38,"Знаменский муниципальный район","Сухотинский сельсовет","68606450"]
[39,"Инжавинский муниципальный район","Балыклейский сельсовет","68608405"]
[40,"Инжавинский муниципальный район","Землянский сельсовет","68608410"]
[41,"Инжавинский муниципальный район","Инжавинский муниципальный район","68608000"]
[42,"Инжавинский муниципальный район","Инжавинский поссовет","68608151"]
[43,"Инжавинский муниципальный район","Калугинский сельсовет","68608415"]
[44,"Инжавинский муниципальный район","Караваинский сельсовет","68608420"]
[45,"Инжавинский муниципальный район","Карай-Салтыковский сельсовет","68608425"]
[46,"Инжавинский муниципальный район","Караульский сельсовет","68608430"]
[47,"Инжавинский муниципальный район","Красивский сельсовет","68608435"]
[48,"Инжавинский муниципальный район","Марьевский сельсовет","68608450"]
[49,"Инжавинский муниципальный район","Михайловский сельсовет","68608455"]
[50,"Инжавинский муниципальный район","Никитинский сельсовет","68608460"]
[51,"Инжавинский муниципальный район","Николинский сельсовет","68608465"]
[52,"Инжавинский муниципальный район","Паревский сельсовет","68608470"]
[53,"Инжавинский муниципальный район","Чернавский сельсовет","68608475"]
[54,"Кирсановский муниципальный район","Голынщинский сельсовет","68610415"]
[55,"Кирсановский муниципальный район","Иноковский сельсовет","68610425"]
[56,"Кирсановский муниципальный район","Калаисский сельсовет","68610430"]
[57,"Кирсановский муниципальный район","Кирсановский муниципальный район","68610000"]
[58,"Кирсановский муниципальный район","Ковыльский сельсовет","68610440"]
[59,"Кирсановский муниципальный район","Ленинский сельсовет","68610420"]
[60,"Кирсановский муниципальный район","Марьинский сельсовет","68610450"]
[61,"Кирсановский муниципальный район","Соколовский сельсовет","68610465"]
[62,"Кирсановский муниципальный район","Уваровщинский сельсовет","68610475"]
[63,"Мичуринский муниципальный район","Глазковский сельсовет","68612410"]
[64,"Мичуринский муниципальный район","Жидиловский сельсовет","68612415"]
[65,"Мичуринский муниципальный район","Заворонежский сельсовет","68612420"]
[66,"Мичуринский муниципальный район","Изосимовский сельсовет","68612425"]
[67,"Мичуринский муниципальный район","Кочетовский сельсовет","68612430"]
[68,"Мичуринский муниципальный район","Красивский сельсовет","68612435"]
[69,"Мичуринский муниципальный район","Мичуринский муниципальный район","68612000"]
[70,"Мичуринский муниципальный район","Новоникольский сельсовет","68612440"]
[71,"Мичуринский муниципальный район","Остролучинский сельсовет","68612445"]
[72,"Мичуринский муниципальный район","Стаевский сельсовет","68612450"]
[73,"Мичуринский муниципальный район","Староказинский сельсовет","68612455"]
[74,"Мичуринский муниципальный район","Старотарбеевский сельсовет","68612405"]
[75,"Мичуринский муниципальный район","Терский сельсовет","68612460"]
[76,"Мичуринский муниципальный район","Устьинский сельсовет","68612465"]
[77,"Мичуринский муниципальный район","Хмелевский сельсовет","68612470"]
[78,"Мордовский муниципальный район","Александровский сельсовет","68614405"]
[79,"Мордовский муниципальный район","Ивановский сельсовет","68614420"]
[80,"Мордовский муниципальный район","Лавровский сельсовет","68614430"]
[81,"Мордовский муниципальный район","Мордовский муниципальный район","68614000"]
[82,"Мордовский муниципальный район","Мордовский поссовет","68614151"]
[83,"Мордовский муниципальный район","Новопокровский поссовет","68614154"]
[84,"Мордовский муниципальный район","Шмаровский сельсовет","68614450"]
[85,"Мордовский муниципальный район","Шульгинский сельсовет","68614455"]
[86,"Моршанский муниципальный район","Алгасовский сельсовет","68616404"]
[87,"Моршанский муниципальный район","Алкужборковский сельсовет","68616408"]
[88,"Моршанский муниципальный район","Вановский сельсовет","68616412"]
[89,"Моршанский муниципальный район","Весёловский сельсовет","68616416"]
[90,"Моршанский муниципальный район","Дмитриевский сельсовет","68616420"]
[91,"Моршанский муниципальный район","Екатериновский сельсовет","68616428"]
[92,"Моршанский муниципальный район","Ивенский сельсовет","68616432"]
[93,"Моршанский муниципальный район","Карельский сельсовет","68616436"]
[94,"Моршанский муниципальный район","Крюковский сельсовет","68616440"]
[95,"Моршанский муниципальный район","Куликовский сельсовет","68616444"]
[96,"Моршанский муниципальный район","Лёвинский сельсовет","68616448"]
[97,"Моршанский муниципальный район","Моршанский муниципальный район","68616000"]
[98,"Моршанский муниципальный район","Новотомниковский сельсовет","68616452"]
[99,"Моршанский муниципальный район","Ракшинский сельсовет","68616468"]
[100,"Моршанский муниципальный район","Серповский сельсовет","68616472"]
[101,"Моршанский муниципальный район","Старотомниковский сельсовет","68616476"]
[102,"Моршанский муниципальный район","Устьинский сельсовет","68616480"]
[103,"Мучкапский муниципальный район","Заполатовский сельсовет","68618410"]
[104,"Мучкапский муниципальный район","Краснокустовский сельсовет","68618415"]
[105,"Мучкапский муниципальный район","Кулябовский сельсовет","68618420"]
[106,"Мучкапский муниципальный район","Мучкапский муниципальный район","68618000"]
[107,"Мучкапский муниципальный район","Мучкапский поссовет","68618151"]
[108,"Мучкапский муниципальный район","Сергиевский сельсовет","68618435"]
[109,"Мучкапский муниципальный район","Троицкий сельсовет","68618440"]
[110,"Мучкапский муниципальный район","Чащинский сельсовет","68618445"]
[111,"Мучкапский муниципальный район","Шапкинский сельсовет","68618450"]
[112,"Никифоровский муниципальный район","Дмитриевский поссовет","68620151"]
[113,"Никифоровский муниципальный район","Екатерининский сельсовет","68620415"]
[114,"Никифоровский муниципальный район","Никифоровский муниципальный район","68620000"]
[115,"Никифоровский муниципальный район","Озёрский сельсовет","68620430"]
[116,"Никифоровский муниципальный район","Сабуро-Покровский сельсовет","68620435"]
[117,"Никифоровский муниципальный район","Юрловский сельсовет","68620445"]
[118,"Никифоровский муниципальный район","Ярославский сельсовет","68620450"]
[119,"Первомайский муниципальный район","Иловай-Дмитриевский сельсовет","68622410"]
[120,"Первомайский муниципальный район","Козьмодемьяновский сельсовет","68622420"]
[121,"Первомайский муниципальный район","Новоархангельский сельсовет","68622430"]
[122,"Первомайский муниципальный район","Новоклёнский сельсовет","68622440"]
[123,"Первомайский муниципальный район","Новосеславинский сельсовет","68622450"]
[124,"Первомайский муниципальный район","Новоспасский сельсовет","68622452"]
[125,"Первомайский муниципальный район","Первомайский муниципальный район","68622000"]
[126,"Первомайский муниципальный район","Первомайский поссовет","68622151"]
[127,"Первомайский муниципальный район","Староклёнский сельсовет","68622460"]
[128,"Первомайский муниципальный район","Старосеславинский сельсовет","68622470"]
[129,"Первомайский муниципальный район","Хоботовский сельсовет","68622480"]
[130,"Первомайский муниципальный район","Чернышевский сельсовет","68622490"]
[131,"Петровский муниципальный район","Волчковский сельсовет","68624405"]
[132,"Петровский муниципальный район","Кочетовский сельсовет","68624415"]
[133,"Петровский муниципальный район","Красиловский сельсовет","68624420"]
[134,"Петровский муниципальный район","Крутовский сельсовет","68624425"]
[135,"Петровский муниципальный район","Первомайский сельсовет","68624435"]
[136,"Петровский муниципальный район","Петровский муниципальный район","68624000"]
[137,"Петровский муниципальный район","Петровский сельсовет","68624440"]
[138,"Петровский муниципальный район","Плавицкий сельсовет","68624445"]
[139,"Петровский муниципальный район","Покрово-Чичеринский сельсовет","68624450"]
[140,"Петровский муниципальный район","Рахманинский сельсовет","68624455"]
[141,"Петровский муниципальный район","Успеновский сельсовет","68624470"]
[142,"Петровский муниципальный район","Шехманский сельсовет","68624475"]
[143,"Петровский муниципальный район","Яблоновецкий сельсовет","68624480"]
[144,"Пичаевский муниципальный район","Байловский сельсовет","68626405"]
[145,"Пичаевский муниципальный район","Большеломовисский сельсовет","68626410"]
[146,"Пичаевский муниципальный район","Большешереметьевский сельсовет","68626415"]
[147,"Пичаевский муниципальный район","Вяжлинский сельсовет","68626445"]
[148,"Пичаевский муниципальный район","Егоровский сельсовет","68626440"]
[149,"Пичаевский муниципальный район","Липовский сельсовет","68626450"]
[150,"Пичаевский муниципальный район","Пичаевский муниципальный район","68626000"]
[151,"Пичаевский муниципальный район","Пичаевский сельсовет","68626465"]
[152,"Пичаевский муниципальный район","Подъёмский сельсовет","68626470"]
[153,"Пичаевский муниципальный район","Покрово-Васильевский сельсовет","68626475"]
[154,"Пичаевский муниципальный район","Рудовский сельсовет","68626480"]
[155,"Рассказовский муниципальный район","Верхнеспасский сельсовет","68628405"]
[156,"Рассказовский муниципальный район","Дмитриевщинский сельсовет","68628407"]
[157,"Рассказовский муниципальный район","Зелёновский сельсовет","68628409"]
[158,"Рассказовский муниципальный район","Нижнеспасский сельсовет","68628420"]
[159,"Рассказовский муниципальный район","Никольский сельсовет","68628422"]
[160,"Рассказовский муниципальный район","Новгородовский сельсовет","68628425"]
[161,"Рассказовский муниципальный район","Озёрский сельсовет","68628430"]
[162,"Рассказовский муниципальный район","Пичерский сельсовет","68628445"]
[163,"Рассказовский муниципальный район","Платоновский сельсовет","68628450"]
[164,"Рассказовский муниципальный район","Рассказовский муниципальный район","68628000"]
[165,"Рассказовский муниципальный район","Рождественский сельсовет","68628460"]
[166,"Рассказовский муниципальный район","Саюкинский сельсовет","68628465"]
[167,"Рассказовский муниципальный район","Татарщинский сельсовет","68628470"]
[168,"Рассказовский муниципальный район","Хитровский сельсовет","68628475"]
[169,"Ржаксинский муниципальный район","Богдановский сельсовет","68630410"]
[170,"Ржаксинский муниципальный район","Большержаксинский сельсовет","68630415"]
[171,"Ржаксинский муниципальный район","Волхонщинский сельсовет","68630420"]
[172,"Ржаксинский муниципальный район","Гавриловский сельсовет","68630425"]
[173,"Ржаксинский муниципальный район","Золотовский сельсовет","68630430"]
[174,"Ржаксинский муниципальный район","Каменский сельсовет","68630435"]
[175,"Ржаксинский муниципальный район","Лукинский сельсовет","68630440"]
[176,"Ржаксинский муниципальный район","Пустоваловский сельсовет","68630450"]
[177,"Ржаксинский муниципальный район","Ржаксинский муниципальный район","68630000"]
[178,"Ржаксинский муниципальный район","Ржаксинский поссовет","68630151"]
[179,"Ржаксинский муниципальный район","Степановский сельсовет","68630455"]
[180,"Ржаксинский муниципальный район","Чакинский сельсовет","68630460"]
[181,"Сампурский муниципальный район","Бахаревский сельсовет","68632410"]
[182,"Сампурский муниципальный район","Ивановский сельсовет","68632430"]
[183,"Сампурский муниципальный район","Сампурский муниципальный район","68632000"]
[184,"Сампурский муниципальный район","Сампурский сельсовет","68632470"]
[185,"Сампурский муниципальный район","Сатинский сельсовет","68632420"]
[186,"Сампурский муниципальный район","Серединовский сельсовет","68632480"]
[187,"Сосновский муниципальный район","Верхнеярославский сельсовет","68634408"]
[188,"Сосновский муниципальный район","Грязновский сельсовет","68634416"]
[189,"Сосновский муниципальный район","Дегтянский сельсовет","68634420"]
[190,"Сосновский муниципальный район","Дельнодубравский сельсовет","68634424"]
[191,"Сосновский муниципальный район","Зелёновский сельсовет","68634428"]
[192,"Сосновский муниципальный район","Кулеватовский сельсовет","68634436"]
[193,"Сосновский муниципальный район","Ламский сельсовет","68634440"]
[194,"Сосновский муниципальный район","Октябрьский сельсовет","68634448"]
[195,"Сосновский муниципальный район","Ольховский сельсовет","68634452"]
[196,"Сосновский муниципальный район","Отъясский сельсовет","68634456"]
[197,"Сосновский муниципальный район","Перкинский сельсовет","68634460"]
[198,"Сосновский муниципальный район","Подлесный сельсовет","68634464"]
[199,"Сосновский муниципальный район","Сосновский муниципальный район","68634000"]
[200,"Сосновский муниципальный район","Сосновский поссовет","68634151"]
[201,"Сосновский муниципальный район","Троицковихляйский сельсовет","68634476"]
[202,"Староюрьевский муниципальный район","Большедороженский сельсовет","68636410"]
[203,"Староюрьевский муниципальный район","Вишневский сельсовет","68636415"]
[204,"Староюрьевский муниципальный район","Мезинецкий сельсовет","68636420"]
[205,"Староюрьевский муниципальный район","Новиковский сельсовет","68636425"]
[206,"Староюрьевский муниципальный район","Новоюрьевский сельсовет","68636430"]
[207,"Староюрьевский муниципальный район","Подгорненский сельсовет","68636440"]
[208,"Староюрьевский муниципальный район","Поповский сельсовет","68636435"]
[209,"Староюрьевский муниципальный район","Спасский сельсовет","68636445"]
[210,"Староюрьевский муниципальный район","Староюрьевский муниципальный район","68636000"]
[211,"Староюрьевский муниципальный район","Староюрьевский сельсовет","68636450"]
[212,"Тамбовский муниципальный район","Авдеевский сельсовет","68640403"]
[213,"Тамбовский муниципальный район","Беломестнодвойнёвский сельсовет","68640407"]
[214,"Тамбовский муниципальный район","Беломестнокриушинский сельсовет","68640410"]
[215,"Тамбовский муниципальный район","Богословский сельсовет","68640414"]
[216,"Тамбовский муниципальный район","Бокинский сельсовет","68640417"]
[217,"Тамбовский муниципальный район","Большелиповицкий сельсовет","68640420"]
[218,"Тамбовский муниципальный район","Горельский сельсовет","68640426"]
[219,"Тамбовский муниципальный район","Донской сельсовет","68640430"]
[220,"Тамбовский муниципальный район","Комсомольский сельсовет","68640438"]
[221,"Тамбовский муниципальный район","Красносвободненский сельсовет","68640442"]
[222,"Тамбовский муниципальный район","Кузьмино-Гатьевский сельсовет","68640448"]
[223,"Тамбовский муниципальный район","Лысогорский сельсовет","68640452"]
[224,"Тамбовский муниципальный район","Малиновский сельсовет","68640456"]
[225,"Тамбовский муниципальный район","Новолядинский поссовет","68640158"]
[226,"Тамбовский муниципальный район","Новосельцевский сельсовет","68640462"]
[227,"Тамбовский муниципальный район","Орловский сельсовет","68640497"]
[228,"Тамбовский муниципальный район","Покрово-Пригородный сельсовет","68640465"]
[229,"Тамбовский муниципальный район","Селезнёвский сельсовет","68640470"]
[230,"Тамбовский муниципальный район","Столовский сельсовет","68640474"]
[231,"Тамбовский муниципальный район","Стрелецкий сельсовет","68640477"]
[232,"Тамбовский муниципальный район","Суравский сельсовет","68640481"]
[233,"Тамбовский муниципальный район","Тамбовский муниципальный район","68640000"]
[234,"Тамбовский муниципальный район","Татановский сельсовет","68640484"]
[235,"Тамбовский муниципальный район","Тулиновский сельсовет","68640489"]
[236,"Тамбовский муниципальный район","Цнинский сельсовет","68640499"]
[237,"Тамбовский муниципальный район","Челнавский сельсовет","68640491"]
[238,"Тамбовский муниципальный район","Черняновский сельсовет","68640493"]
[239,"Токарёвский муниципальный район","Абакумовский сельсовет","68642405"]
[240,"Токарёвский муниципальный район","Александровский сельсовет","68642410"]
[241,"Токарёвский муниципальный район","Безукладовский сельсовет","68642415"]
[242,"Токарёвский муниципальный район","Гладышевский сельсовет","68642425"]
[243,"Токарёвский муниципальный район","Даниловский сельсовет","68642430"]
[244,"Токарёвский муниципальный район","Полетаевский сельсовет","68642455"]
[245,"Токарёвский муниципальный район","Сергиевский сельсовет","68642465"]
[246,"Токарёвский муниципальный район","Токарёвский муниципальный район","68642000"]
[247,"Токарёвский муниципальный район","Токарёвский поселковый округ","68642151"]
[248,"Токарёвский муниципальный район","Троицкоросляйский сельсовет","68642470"]
[249,"Токарёвский муниципальный район","Чичеринский сельсовет","68642475"]
[250,"Уваровский муниципальный район","Берёзовский сельсовет","68644410"]
[251,"Уваровский муниципальный район","Верхнешибряйский сельсовет","68644420"]
[252,"Уваровский муниципальный район","Лучёвский сельсовет","68644433"]
[253,"Уваровский муниципальный район","Моисеево-Алабушский сельсовет","68644440"]
[254,"Уваровский муниципальный район","Нижнешибряйский сельсовет","68644450"]
[255,"Уваровский муниципальный район","Павлодарский сельсовет","68644460"]
[256,"Уваровский муниципальный район","Подгорненский сельсовет","68644467"]
[257,"Уваровский муниципальный район","Уваровский муниципальный район","68644000"]
[258,"Умётский муниципальный район","Берёзовский сельсовет","68646410"]
[259,"Умётский муниципальный район","Бибиковский сельсовет","68646415"]
[260,"Умётский муниципальный район","Глуховский сельсовет","68646425"]
[261,"Умётский муниципальный район","Оржевский сельсовет","68646440"]
[262,"Умётский муниципальный район","Сергиевский сельсовет","68646460"]
[263,"Умётский муниципальный район","Скачихинский сельсовет","68646470"]
[264,"Умётский муниципальный район","Софьинский сельсовет","68646480"]
[265,"Умётский муниципальный район","Сулакский сельсовет","68646490"]
[266,"Умётский муниципальный район","Умётский муниципальный район","68646000"]
[267,"Умётский муниципальный район","Умётский поссовет","68646151"]
[268,"г Кирсанов","г Кирсанов","68705000"]
[269,"г Котовск","г Котовск","68710000"]
[270,"г Мичуринск","г Мичуринск","68715000"]
[271,"г Моршанск","г Моршанск","68720000"]
[272,"г Рассказово","г Рассказово","68725000"]
[273,"г Тамбов","г Тамбов","68701000"]
[274,"г Уварово","г Уварово","68730000"]

{"sheet":"REESTR_MO_FILTER","index":42,"n_rows":0,"n_cols":0,"rows_kept":0,"cut":false,"hidden":true,"merged":[]}

{"sheet":"modfrmReestrMR","index":43,"n_rows":0,"n_cols":0,"rows_kept":0,"cut":false,"hidden":true,"merged":[]}

{"sheet":"modServiceModule","index":44,"n_rows":0,"n_cols":0,"rows_kept":0,"cut":false,"hidden":true,"merged":[]}

{"sheet":"modfrmCheckUpdates","index":45,"n_rows":0,"n_cols":0,"rows_kept":0,"cut":false,"hidden":true,"merged":[]}

{"sheet":"REESTR_DS","index":46,"n_rows":3,"n_cols":2,"rows_kept":3,"cut":false,"hidden":true,"merged":[]}
[]
[]
[null,"г Тамбов, г Тамбов (68701000);"]

{"sheet":"REESTR_CHS","index":47,"n_rows":0,"n_cols":0,"rows_kept":0,"cut":false,"hidden":true,"merged":[]}

{"sheet":"REESTR_LINK","index":48,"n_rows":3,"n_cols":3,"rows_kept":3,"cut":false,"hidden":true,"merged":[]}
["ID","LINK_NAME","REGION"]
[4189678,"https://portal.eias.ru/Portal/DownloadPage.aspx?type=12&guid=????????-????-????-????-????????????","ALL"]
[4190415,"https://eias.fstrf.ru/disclo/get_file?p_guid=????????-????-????-????-????????????","ALL"]